Cogmind - Beta 14 @@@ ROGUE MODE // 2024.12.10 @ 22:52:07 Player: xack Result: Destroyed by as-68639 with Assembled Blade Performance ------------- Evolutions (0) 0 Regions Visited (2) 400 Robots Destroyed (10) 50 Value Destroyed (317) 317 Prototype IDs (4) 80 Alien Tech Used (0) 0 Bonus (0) 0 TOTAL SCORE: 847 Bonus ------- None Cogmind --------- Core Integrity 0/250 Matter 199/300 Energy 24/100 System Corruption 0% Temperature Cool (0) Movement Treading (160) Location -10/Mines Parts ------- > --- POWER (1) -------- (None) > --- PROPULSION (2) --- Light Treads Light Treads > --- UTILITY (2) ------ Large Storage Unit Improved Targeting Computer > --- WEAPON (2) ------- Light EM Pulse Cannon > --- INVENTORY (15) --- Aluminum Leg Large Storage Unit Peak State ------------ > --- POWER ------------ Ion Engine > --- PROPULSION ------- Aluminum Leg Aluminum Leg > --- UTILITY ---------- Small Storage Unit Sensor Array > --- WEAPON ----------- Light EM Pulse Cannon Assault Rifle > --- INVENTORY -------- Ion Engine Light Treads Light Treads Aluminum Leg Improved Targeting Computer Medium Laser Light EM Pulse Cannon Grenade Launcher [Rating: 9] Favorites ----------- Power Ion Engine Engine Ion Engine Propulsion Aluminum Leg Treads Light Treads Leg Aluminum Leg Utility Sensor Array Device Sensor Array Storage Small Storage Unit Processor Improved Targeting Computer Weapon Assault Rifle Energy Gun Medium Laser Energy Cannon Light EM Pulse Cannon Ballistic Gun Assault Rifle Launcher Grenade Launcher Special Weapon Mining Laser Build | -11 -10 -10 ------- Run | Yrd Mat Min Slots Evolved . | . . . Power . | . . . Propulsion . | . . . Utility . | . . . Weapon . | . . . Parts Attached 21 | 5 6 10 Power 3 | . 2 1 Engine 3 | . 2 1 Core . | . . . Reactor . | . . . Propulsion 6 | 2 1 3 Treads 2 | . . 2 Leg 4 | 2 1 1 Wheel . | . . . Hover . | . . . Flight . | . . . Utility 4 | 1 2 1 Device 1 | . 1 . Storage 2 | 1 1 . Processor 1 | . . 1 Hackware . | . . . Protection . | . . . Artifact . | . . . Weapon 8 | 2 1 5 Energy Gun 2 | 1 . 1 Energy Cannon 2 | . 1 1 Ballistic Gun 2 | 1 . 1 Ballistic Cannon . | . . . Launcher 1 | . . 1 Special Weapon 1 | . . 1 Impact Weapon . | . . . Slashing Weapon . | . . . Piercing Weapon . | . . . Special Melee Weapon . | . . . Unidentified Prototypes . | . . . Parts Lost 10 | . . 10 Power 2 | . . 2 Propulsion 2 | . . 2 Utility 1 | . . 1 Weapon 5 | . . 5 Highest Loss Streak 10 | . . 10 To Critical Strikes . | . . . Average Slot Usage (%) 97 | . 99 79 Engine 13 | . 14 6 Leg 27 | . 28 18 Device 12 | . 13 4 Storage 14 | . 14 14 Energy Gun 8 | . 8 6 Energy Cannon 5 | . 5 6 Ballistic Gun 13 | . 14 7 Peak Build Rating 9 | 5 9 9 Average Rating 7 | 3 7 7 On Entrance 4 | . 5 9 Naked Turns . | . . . Heaviest Build 32 | 9 32 32 Greatest Support 40 | 20 20 40 Greatest Overweight (x) 2 | . 1 2 Average Overweight (x) . | . . 1 Largest Inventory Capacity 15 | 8 15 15 Average Capacity 9 | 6 8 15 Most Carried 10 | 5 10 10 Average Carried 7 | 3 7 6 Final Capacity 15 | 8 15 15 Final Carried 10 | 5 10 2 Class Distribution -------------------- 100% | Mutant Dominant Class ---------------- Mutant | -10/Materials Mutant | -10/Mines Resources | -11 -10 -10 ----------- Run | Yrd Mat Min Matter Collected 420 | 223 197 . Remotely . | . . . Salvage Created 344 | . 344 . Parts 16 | . 16 . Haulers Intercepted 1 | . 1 . Recyclers Shooed . | . . . Parts Field Recycled . | . . . Retrieved Matter . | . . . Parts Self-Destructed . | . . . Prevented . | . . . Kills | -11 -10 -10 ------- Run | Yrd Mat Min Combat Hostiles Destroyed 7 | . 6 1 Guns 5 | . 5 . AOE 1 | . . 1 Classes Destroyed 4 | . 3 1 Hauler 1 | . 1 . Watcher 2 | . 2 . Grunt 6 | . 6 . Demolisher 1 | . . 1 Best Kill Streak 4 | . 4 1 Combat Bots Only 2 | . 2 1 Max Kills in Single Turn 1 | . 1 1 Gunslinging . | . . . Exploded 1 | . . 1 Melee . | . . . Uniques/NPCs Destroyed . | . . . Combat | -11 -10 -10 -------- Run | Yrd Mat Min Hostile Shots Fired 79 | . 35 44 Missed 19 | . 13 6 Damage Taken 1399 | . 298 1101 Core 272 | . 12 260 Absorbed by Shields . | . . . Core Remaining (%) 100 | 100 . . Volleys Fired 52 | . 42 10 Largest 2 | . 2 2 Hottest 100 | . 76 100 Shots Fired 97 | . 83 14 Gun 88 | . 80 8 Cannon 6 | . 3 3 Launcher 2 | . . 2 Special 1 | . . 1 Kinetic 47 | . 42 5 Thermal 42 | . 38 4 Explosive 2 | . . 2 Electromagnetic 6 | . 3 3 Robot Hit Streak 16 | . 16 9 Robot Miss Streak 3 | . 3 3 Penetration Max . | . . . Secondary Targets . | . . . Shots Hit Robots 68 | . 60 8 Core Hits 22 | . 20 2 Critical Kills . | . . . Critical Parts Destroyed . | . . . Critical Strikes 3 | . 3 . Burn 3 | . 3 . Melee Attacks . | . . . Impact . | . . . Slashing . | . . . Piercing . | . . . Sneak Attacks . | . . . Combat Hostiles . | . . . Follow-up Attacks . | . . . Damage Inflicted 916 | . 788 128 Guns 758 | . 718 40 Cannons 127 | . 70 57 Explosions 31 | . . 31 Melee . | . . . Ramming . | . . . Kinetic 376 | . 349 27 Thermal 382 | . 369 13 Explosive 31 | . . 31 Electromagnetic 127 | . 70 57 Impact . | . . . Slashing . | . . . Piercing . | . . . Highest Corruption . | . . . Average Corruption . | . . . Corruption Purged . | . . . Corruption Blocked . | . . . Overload Shots . | . . . Overflow Damage . | . . . Projectiles . | . . . Explosions . | . . . Melee . | . . . Knockbacks . | . . . Impact . | . . . Kinetic . | . . . Secondary . | . . . Self-Inflicted Damage . | . . . Shots . | . . . Rammed . | . . . Targets Rammed . | . . . Kicked . | . . . Crushed . | . . . Highest Temperature 180 | . 180 70 Average Temperature 49 | . 54 18 Received Heat Transfer 272 | . 147 125 Siege Activations . | . . . Robots Corrupted . | . . . Combat Hostiles . | . . . Parts Fried . | . . . Impact Corruptions . | . . . Robots Melted 1 | . 1 . Combat Hostiles 1 | . 1 . Parts Melted . | . . . Heat Transferred 1332 | . 1295 37 Parts Sabotaged . | . . . Parts Stolen . | . . . Parts Stripped . | . . . Power Chain Reactions . | . . . Alert | -11 -10 -10 ------- Run | Yrd Mat Min Peak Influence 124 | . 124 10 Initial . | . . . Average 52 | . 61 . Maximum Alert Level . | . . . Low Security (%) 100 | 100 100 100 Level 1 . | . . . Level 2 . | . . . Level 3 . | . . . Level 4 . | . . . Level 5 . | . . . High Security . | . . . Max Security . | . . . Squads Dispatched 3 | . 3 . Investigation 1 | . 1 . Extermination . | . . . Reinforcement 2 | . 2 . Assault . | . . . Garrison . | . . . Intercept . | . . . Searches Triggered . | . . . Construction Impeded . | . . . Haulers Reinforced . | . . . Active Scanning Responses . | . . . Cargo Convoy Interrupts . | . . . Stealth | -11 -10 -10 --------- Run | Yrd Mat Min Distress Signals 1 | . 1 . Communications Jammed . | . . . Distress Signals . | . . . Times Spotted 29 | . 17 12 Peak Tracking Total 6 | . 3 6 Tactical Retreats 1 | . 1 . Traps | -11 -10 -10 ------- Run | Yrd Mat Min Traps Triggered 3 | . 3 . Indirectly . | . . . Trap Hack Attempts . | . . . Triggered . | . . . Disarmed . | . . . Reprogrammed . | . . . Reused . | . . . Traps Extracted . | . . . Installed . | . . . Triggered . | . . . Machines | -11 -10 -10 ---------- Run | Yrd Mat Min Machines Disabled . | . . . Max in Single Turn . | . . . Machines Repaired . | . . . Machines Dismantled . | . . . Machines Sabotaged . | . . . Overloaded Fab Kills . | . . . Hacking | -11 -10 -10 --------- Run | Yrd Mat Min Machines Accessed 4 | . 4 . Terminals 4 | . 4 . Fabricators . | . . . Repair Stations . | . . . Recycling Units . | . . . Scanalyzers . | . . . Garrison Access . | . . . Total Hacks 9 | . 9 . Successful 3 | . 3 . Failed 6 | . 6 . Catastrophic 2 | . 2 . Database Lockouts . | . . . Manual 7 | . 7 . Terminals 9 | . 9 . Fabricators . | . . . Repair Stations . | . . . Recycling Units . | . . . Scanalyzers . | . . . Garrison Access . | . . . Terminal Hacks 3 | . 3 . Prototype ID Bank 2 | . 2 . Unreport Threat 1 | . 1 . Fabricator Hacks . | . . . Repair Station Hacks . | . . . Recycling Unit Hacks . | . . . Scanalyzer . | . . . Garrison Access Hacks . | . . . Unauthorized Hacks . | . . . Terminals . | . . . Fabricators . | . . . Repair Stations . | . . . Recycling Units . | . . . Scanalyzers . | . . . Garrison Access . | . . . Data Cores Recovered . | . . . Used . | . . . Hacking Detections 4 | . 4 . Full Trace Events . | . . . Feedback Events . | . . . Feedback Blocked . | . . . Robot Schematics Acquired . | . . . Robots Built . | . . . Authchips . | . . . Time . | . . . Total Robot Build Rating . | . . . Part Schematics Acquired . | . . . Parts Built . | . . . Authchips . | . . . Time . | . . . Total Part Build Rating . | . . . Parts Repaired . | . . . Time . | . . . Parts Recycled . | . . . Recycled Matter . | . . . Retrieved Matter . | . . . Retrieved Components . | . . . Parts Scanalyzed . | . . . Part Schematics Acquired . | . . . Parts Damaged . | . . . Bothacking | -11 -10 -10 ------------ Run | Yrd Mat Min Used RIF Installer . | . . . Robots Hacked . | . . . Non-combat . | . . . Combat . | . . . Robot Hacks Applied . | . . . Relay Couplers Released . | . . . Fabnet Peak Effective % . | . . . Robots Rewired . | . . . Allies Hacked . | . . . Hacks Repelled . | . . . Allies | -11 -10 -10 -------- Run | Yrd Mat Min Total Allies . | . . . Largest Group . | . . . Highest-Rated Group . | . . . Highest-Rated Ally . | . . . Total Orders . | . . . Ally Attacks . | . . . Total Damage . | . . . Kills . | . . . Allies Corrupted . | . . . Allies Melted . | . . . Intel | -11 -10 -10 ------- Run | Yrd Mat Min Robot Analysis Total . | . . . Derelict Logs Recovered . | . . . Drone Launches . | . . . Drone Recoveries . | . . . Exploration | -11 -10 -10 ------------- Run | Yrd Mat Min Turns Passed 1065 | 59 915 91 Spaces Moved 592 | 44 523 25 Core 11 | 11 . . Treads 4 | . . 4 Legs 577 | 33 523 21 Wheels . | . . . Hover . | . . . Flight . | . . . Fastest Speed 50 | 50 120 160 Average Speed 129 | 102 128 216 Slowest Speed 260 | 120 190 260 Overloaded Moves . | . . . Propulsion Burnouts . | . . . Robots Hopped . | . . . Cave-ins Triggered . | . . . Exploration Rate (%) 28 | 3 72 10 Regions Visited 2 Branch Regions 1 Pre-discovered Areas . | . . . Known Exits Taken . | . . . Unknown Exits Taken 2 | 1 1 . Scrap Searched . | . . . Spaces Dug . | . . . Terrain Destroyed 1 | . . 1 Melee . | . . . Projectile 1 | . . 1 AOE . | . . . Terrain Rammed . | . . . Walls Destroyed . | . . . Machines Disabled . | . . . Actions | -11 -10 -10 --------- Run | Yrd Mat Min Total 790 | 57 688 45 Wait 101 | . 101 . Move 590 | 43 522 25 Hop . | . . . Pick Up 20 | 9 11 . Fast Attach 1 | 1 . . Attach 15 | 4 3 8 Detach . | . . . Swap 5 | . 3 2 Drop 6 | . 6 . Fire 52 | . 42 10 Melee . | . . . Ram . | . . . Kick . | . . . Crush . | . . . Escape Stasis . | . . . Rewire . | . . . Trap . | . . . Miscellaneous . | . . . Route ------- -11/Scrapyard -10/Materials (discovered 3 exits: [*Mat x2] / [*Min]) -10/Mines (discovered 1 exit: [*Mat]) History --------- Turn | Location | Event 9 | -11/Scrapyard | Discovered new exit (range 15) 60 | -11/Scrapyard | Entered Materials 301 | -10/Materials | Build established: Mutant 575 | -10/Materials | Discovered new exit (range 9) 780 | -10/Materials | Discovered new exit (range 9) 875 | -10/Materials | Discovered new exit (range 12) 975 | -10/Materials | Entered Mines 982 | -10/Mines | Assembled infested the area 987 | -10/Mines | Assisted by a Guerilla fighting off Assembled 990 | -10/Mines | Discovered new exit (range 7) 1034 | -10/Mines | Core integrity fell below 50% 1063 | -10/Mines | Core integrity fell below 20% 1066 | -10/Mines | Destroyed by as-68639 with Assembled Blade Last Messages --------------- 01011_ R-06 Scavenger collects Wheel. 01012_ D-53 Grenadier IFF system glitched. 01015_ Lgt. EM Pulse Cannon destroyed. 01016_ K-01 Serf collects debris. 01017_ Aluminum Leg destroyed. 01017_ R-06 Scavenger collects Sml. Storage Unit. 01018_ The unstable cave ceiling collapses. 01019_ K-01 Serf collects debris. 01020_ The unstable cave ceiling collapses. 01024_ Ion Engine destroyed. 01028_ D-53 Grenadier misfires. 01029_ The unstable cave ceiling collapses. 01040_ D-53 Grenadier destroyed. 01044_ The unstable cave ceiling collapses. 01048_ Assault Rifle destroyed. 01055_ Med. Laser destroyed. 01056_ The unstable cave ceiling collapses. 01058_ Mining Laser destroyed. 01063_ The unstable cave ceiling collapses. Map ----- +----------------------------------------------------+ | | | | | | | | | | | | | | | | | | | | | | | | | | | | | | | ??????????????????????????????????????????????? | | ?????????????????#????????????????????????????? | | ????????????????? ??????????????????????????? | | ????????????????? ""??????????????????????????? | | ????????????????? ""??????????????????????????? | | ????????????????? ""??????????????????????????? | | ????????????????? ??????????????????##??????? | | ????????????????? ????????????????? ##?????? | | ?????????????????# #????########???? ##????? | | ?????????????????# #?### # ##??< #????? | | ?????????????????# ###@ # # ## # ? | | ?????????????????# " a # #? | | ?????????????????# a #?? | | ?????????????????#### # #?????? | | ???????????????????#### ## #??????? | | ??????????????????????# #??????? | | ??????????????????????# #?????? | | ??????????????????????### # #???? | | ????????????????????????### ####???? | | ??????????????????????????## # #??????? | | ???????????????????????????#### # #??????? | | ??????????????????????????????? ##??????? | | ???????????????????????????????# % % #???????? | | ???????????????????????????????? ???????? | | ???????????????????????????????? ##??????? | | ???????????????????????????????? #???????? | | ????????????????????????????????? ##???????? | | ?????????????????????????????????# ##????????? | | ?????????????????????????????????? ??????????? | | ??????????????????????????????????????????????? | | ??????????????????????????????????????????????? | | ??????????????????????????????????????????????? | | ??????????????????????????????????????????????? | | ??????????????????????????????????????????????? | | ??????????????????????????????????????????????? | +----------------------------------------------------+ Best States ------------- Heat Dissipation 25 Energy Generation 10 Energy Capacity 250 Matter Stores 300 Matter Capacity 300 Sight Range 16 Robot Scan Range 14 Terrain Scan Density 10 Evasion (%) 55 Targeting Accuracy 6 Recoil Reduction 2 Item Schematics ----------------- None Robot Schematics ------------------ None Fabricated ------------ Nothing Alien Tech Used ----------------- None Achievements -------------- None Challenges ------------ None Game ------ Seed ElectronDrainedTerminator Manual? 0 Play Time 00:15:38 Cumulative 22.0 hours Start 2024.12.10 @ 22:39:16 End 2024.12.10 @ 22:52:07 Sessions 1 Manual Loads 0 Difficulty Rogue Special Mode None Game No. 12 Rogue 12 Adventurer 0 Explorer 0 Win Type - Total 0 Types 0/0/0/0/0/0/0/0/0 Lore% 12 Gallery% 20 Achievement% 17 Wizard Run 0 Options --------- Layout 1 ASCII 0 Keyboard 0 Movement Mouse Keybinds 0 Fullscreen 1 Font 32/Smallcaps Map View 50x35 Zoom Use 0% Tactical HUD 1 Map Filters NONE Filters NONE Steam 1 RUN: fd113939-9a97-459c-9fa5-584b2854dc23